Workbook

Sheet 7月份
A1: 陆 丰 市 2022 年 7 月 财 政 预 算 支 出 完 成 情 况 表
A2: 2022-07-31 | O2: 单位：万元
B3: 年 初 | C3: 年度预算计划 | F3: 累计 | G3: 占年 | H3: 上年 | I3: 比上年 | J3: 比上年 | K3: 本月 | L3: 上年 | M3: 比上年 | N3: 比上年
A4: 支 出 项 目 | B4: 预 算 | F4: 完成 | G4: 预算 | H4: 同期 | I4: 同期增 | J4: 同期增 | K4: 完成 | L4: 同月 | M4: 同月增 | N4: 同月增 | O4: 备 注
B5: 数 | C5: 上年结转 | D5: 上级补助 | E5: 本级安排 | F5: 数 | G5: % | H5: 完成 | I5: 减额 | J5: (减)% | K5: 数 | L5: 完成 | M5: 减额 | N5: (减)%
A6: 201、一般公共服务支出 | B6: =C6+D6+E6 -> 61,621 | E6: 61,621.00 | F6: 46,901 | G6: =F6/B6*100 -> 76.1 | H6: 40,654 | I6: =F6-H6 -> 6,247 | J6: =I6/H6*100 -> 15.37 | K6: =F6-'[1]6月份 '!F6 -> 4,705 | L6: =H6-'[1]6月份 '!H6 -> 4,639 | M6: =K6-L6 -> 66 | N6: =M6/L6*100 -> 1.42
A7: 203、国防支出 | B7: =C7+D7+E7 -> 0 | H7: 123 | I7: =F7-H7 -> -123 | J7: =I7/H7*100 -> -100.00
A8: 204、公共安全支出 | B8: =C8+D8+E8 -> 56,907 | E8: 56,907.00 | F8: 22,680 | G8: =F8/B8*100 -> 39.9 | H8: 34,216 | I8: =F8-H8 -> -11,536 | J8: =I8/H8*100 -> -33.72 | K8: =F8-'[1]6月份 '!F8 -> 3,266 | L8: =H8-'[1]6月份 '!H8 -> 5,126 | M8: =K8-L8 -> -1,860 | N8: =M8/L8*100 -> -36.29
A9: 205、教育支出 | B9: =C9+D9+E9 -> 230,306 | E9: 230,306.00 | F9: 106,467 | G9: =F9/B9*100 -> 46.2 | H9: 159,286 | I9: =F9-H9 -> -52,819 | J9: =I9/H9*100 -> -33.16 | K9: =F9-'[1]6月份 '!F9 -> 13,360 | L9: =H9-'[1]6月份 '!H9 -> 7,182 | M9: =K9-L9 -> 6,178 | N9: =M9/L9*100 -> 86.02
A10: 206、科学技术支出 | B10: =C10+D10+E10 -> 1,678 | E10: 1,678.00 | F10: 6,588 | G10: =F10/B10*100 -> 392.6 | H10: 7,368 | I10: =F10-H10 -> -780 | J10: =I10/H10*100 -> -10.59 | K10: =F10-'[1]6月份 '!F10 -> 3,212 | L10: =H10-'[1]6月份 '!H10 -> 1,016 | M10: =K10-L10 -> 2,196 | N10: =M10/L10*100 -> 216.14
A11: 207、文化体育与传媒支出 | B11: =C11+D11+E11 -> 19,936 | E11: 19,936.00 | F11: 3,406 | G11: =F11/B11*100 -> 17.1 | H11: 14,778 | I11: =F11-H11 -> -11,372 | J11: =I11/H11*100 -> -76.95 | K11: =F11-'[1]6月份 '!F11 -> 460 | L11: =H11-'[1]6月份 '!H11 -> 3,352 | M11: =K11-L11 -> -2,892 | N11: =M11/L11*100 -> -86.28
A12: 208、社会保障和就业支出 | B12: =C12+D12+E12 -> 138,253 | E12: 138,253.00 | F12: 95,151 | G12: =F12/B12*100 -> 68.8 | H12: 76,189 | I12: =F12-H12 -> 18,962 | J12: =I12/H12*100 -> 24.89 | K12: =F12-'[1]6月份 '!F12 -> 3,263 | L12: =H12-'[1]6月份 '!H12 -> 7,092 | M12: =K12-L12 -> -3,829 | N12: =M12/L12*100 -> -53.99
A13: 210、卫生健康支出 | B13: =C13+D13+E13 -> 142,504 | E13: 142,504.00 | F13: 107,780 | G13: =F13/B13*100 -> 75.6 | H13: 109,894 | I13: =F13-H13 -> -2,114 | J13: =I13/H13*100 -> -1.92 | K13: =F13-'[1]6月份 '!F13 -> 2,004 | L13: =H13-'[1]6月份 '!H13 -> 3,566 | M13: =K13-L13 -> -1,562 | N13: =M13/L13*100 -> -43.80
A14: 211、节能环保支出 | B14: =C14+D14+E14 -> 7,144 | E14: 7,144.00 | F14: 2,832 | G14: =F14/B14*100 -> 39.6 | H14: 2,969 | I14: =F14-H14 -> -137 | J14: =I14/H14*100 -> -4.61 | K14: =F14-'[1]6月份 '!F14 -> 78 | L14: =H14-'[1]6月份 '!H14 -> 460 | M14: =K14-L14 -> -382 | N14: =M14/L14*100 -> -83.04
A15: 212、城乡社区支出 | B15: =C15+D15+E15 -> 38,910 | E15: 38,910.00 | F15: 22,549 | G15: =F15/B15*100 -> 58.0 | H15: 17,047 | I15: =F15-H15 -> 5,502 | J15: =I15/H15*100 -> 32.28 | K15: =F15-'[1]6月份 '!F15 -> 1,159 | L15: =H15-'[1]6月份 '!H15 -> 1,631 | M15: =K15-L15 -> -472 | N15: =M15/L15*100 -> -28.94
A16: 213、农林水支出 | B16: =C16+D16+E16 -> 119,233 | E16: 119,233.00 | F16: 47,328 | G16: =F16/B16*100 -> 39.7 | H16: 75,649 | I16: =F16-H16 -> -28,321 | J16: =I16/H16*100 -> -37.44 | K16: =F16-'[1]6月份 '!F16 -> 5,697 | L16: =H16-'[1]6月份 '!H16 -> 6,400 | M16: =K16-L16 -> -703 | N16: =M16/L16*100 -> -10.98
A17: 214、交通运输支出 | B17: =C17+D17+E17 -> 16,226 | E17: 16,226.00 | F17: 71,070 | G17: =F17/B17*100 -> 438.0 | H17: 15,922 | I17: =F17-H17 -> 55,148 | J17: =I17/H17*100 -> 346.36 | K17: =F17-'[1]6月份 '!F17 -> 14,189 | L17: =H17-'[1]6月份 '!H17 -> 856 | M17: =K17-L17 -> 13,333 | N17: =M17/L17*100 -> 1,557.59 | O17: 其中：消化历年历年公路建设资金1.4亿元，政府债券资金支出3亿元
A18: 215、资源勘探信息等支出 | B18: =C18+D18+E18 -> 508 | E18: 508.00 | F18: 218 | G18: =F18/B18*100 -> 42.9 | H18: 359 | I18: =F18-H18 -> -141 | J18: =I18/H18*100 -> -39.28 | K18: =F18-'[1]6月份 '!F18 -> 32 | L18: =H18-'[1]6月份 '!H18 -> 18 | M18: =K18-L18 -> 14 | N18: =M18/L18*100 -> 77.78
A19: 216、商业服务业等支出 | B19: =C19+D19+E19 -> 1,251 | E19: 1,251.00 | F19: 857 | G19: =F19/B19*100 -> 68.5 | H19: 830 | I19: =F19-H19 -> 27 | J19: =I19/H19*100 -> 3.25 | K19: =F19-'[1]6月份 '!F19 -> 57 | L19: =H19-'[1]6月份 '!H19 -> 56 | M19: =K19-L19 -> 1 | N19: =M19/L19*100 -> 1.79
A20: 217、金融支出 | B20: =C20+D20+E20 -> 0 | E20: 0.00 | F20: 12,000 | I20: =F20-H20 -> 12,000 | K20: =F20-'[1]6月份 '!F20 -> 200 | O20: 消化历年农合改制资金挂账
A21: 220、自然资源海洋气象等支出 | B21: =C21+D21+E21 -> 4,866 | E21: 4,866.00 | F21: 2,894 | G21: =F21/B21*100 -> 59.5 | H21: 5,618 | I21: =F21-H21 -> -2,724 | J21: =I21/H21*100 -> -48.49 | K21: =F21-'[1]6月份 '!F21 -> 183 | L21: =H21-'[1]6月份 '!H21 -> 448 | M21: =K21-L21 -> -265 | N21: =M21/L21*100 -> -59.15
A22: 221、住房保障支出 | B22: =C22+D22+E22 -> 18,068 | E22: 18,068.00 | F22: 4,828 | G22: =F22/B22*100 -> 26.7 | H22: 6,366 | I22: =F22-H22 -> -1,538 | J22: =I22/H22*100 -> -24.16 | K22: =F22-'[1]6月份 '!F22 -> 309 | L22: =H22-'[1]6月份 '!H22 -> 1,007 | M22: =K22-L22 -> -698 | N22: =M22/L22*100 -> -69.31
A23: 222、粮油物资储备支出 | B23: =C23+D23+E23 -> 3,190 | E23: 3,190.00 | F23: 1,809 | G23: =F23/B23*100 -> 56.7 | H23: 613 | I23: =F23-H23 -> 1,196 | J23: =I23/H23*100 -> 195.11
A24: 224、灾害防治及应急管理支出 | B24: =C24+D24+E24 -> 3,253 | E24: 3,253.00 | F24: 1,978 | G24: =F24/B24*100 -> 60.8 | H24: 2,037 | I24: =F24-H24 -> -59 | J24: =I24/H24*100 -> -2.90 | K24: =F24-'[1]6月份 '!F24 -> 196 | L24: =H24-'[1]6月份 '!H24 -> 190 | M24: =K24-L24 -> 6 | N24: =M24/L24*100 -> 3.16
A25: 232、债务付息支出 | B25: =C25+D25+E25 -> 2,400 | E25: 2,400.00 | F25: 583 | G25: =F25/B25*100 -> 24.3 | H25: 1,070 | I25: =F25-H25 -> -487 | J25: =I25/H25*100 -> -45.51 | L25: =H25-'[1]6月份 '!H25 -> 130 | M25: =K25-L25 -> -130 | N25: =M25/L25*100 -> -100.00
A26: 233、债务发行费用支出 | B26: =C26+D26+E26 -> 100 | E26: 100.00 | F26: 13 | G26: =F26/B26*100 -> 13.0
A27: 227、预备费 | B27: =C27+D27+E27 -> 2,000 | E27: 2,000.00 | G27: =F27/B27*100 -> 0.0
A28: 229、其他支出 | B28: =C28+D28+E28 -> 47,350 | E28: 47,350.00 | F28: 2,252 | G28: =F28/B28*100 -> 4.8 | H28: 1,587 | I28: =F28-H28 -> 665 | J28: =I28/H28*100 -> 41.90 | K28: =F28-'[1]6月份 '!F28 -> 117 | L28: =H28-'[1]6月份 '!H28 -> 189 | M28: =K28-L28 -> -72 | N28: =M28/L28*100 -> -38.10
A29: 一、一般公共预算支出合计 | B29: =SUM(B6:B28) -> 915,704 | C29: =SUM(C6:C28) -> 0 | D29: =SUM(D6:D28) -> 0 | E29: =SUM(E6:E28) -> 915,704 | F29: =SUM(F6:F28) -> 560,184 | G29: =F29/B29*100 -> 61.2 | H29: =SUM(H6:H28) -> 572,575 | I29: =F29-H29 -> -12,391 | J29: =I29/H29*100 -> -2.16 | K29: =SUM(K6:K28) -> 52,487 | L29: =SUM(L6:L28) -> 43,358 | M29: =K29-L29 -> 9,129 | N29: =M29/L29*100 -> 21.05
A30: 二、政府性基金预算支出 | B30: 351,009 | D30: 121800 | E30: 192576 | F30: 288,730 | G30: =F30/B30*100 -> 82.3 | H30: 56,454 | I30: =F30-H30 -> 232,276 | J30: =I30/H30*100 -> 411.44 | K30: =F30-'[1]6月份 '!F30 -> 8,352 | L30: =H30-'[1]6月份 '!H30 -> 1,284 | M30: =K30-L30 -> 7,068 | N30: =M30/L30*100 -> 550.47
A31: 三、国有资本经营支出 | B31: 1,014 | E31: 963 | F31: 493 | G31: =F31/B31*100 -> 48.6 | H31: 224 | I31: =F31-H31 -> 269 | J31: =I31/H31*100 -> 120.09 | K31: =F31-'[1]6月份 '!F31 -> 4 | L31: =H31-'[1]6月份 '!H31 -> 20 | M31: =K31-L31 -> -16 | N31: =M31/L31*100 -> -80.00
A32: 四、债务还本支出 | B32: 1,562 | G32: =F32/B32*100 -> 0.0 | H32: 6,310 | L32: =H32-'[1]6月份 '!H32 -> 6,310
A33: 支出合计 | B33: =B29+B30+B31+B32 -> 1,269,289 | C33: =C29+C30+C31 -> 0 | D33: =D29+D30+D31 -> 121,800 | E33: =E29+E30+E31 -> 1,109,243 | F33: =F29+F30+F31+F32 -> 849,407 | G33: =F33/B33*100 -> 66.9 | H33: =H29+H30+H31+H32 -> 635,563 | I33: =F33-H33 -> 213,844 | J33: =I33/H33*100 -> 33.65 | K33: =K29+K30+K31+K32 -> 60,843 | L33: =L29+L30+L31+L32 -> 50,972 | M33: =K33-L33 -> 9,871 | N33: =M33/L33*100 -> 19.37

Sheet Sheet1

Sheet Sheet2

Sheet Sheet3
